[Event "Moscow Rapid-ch 2018"]
[Site "Moscow"]
[Date "2018.12.09"]
[Round "9"]
[White "Dudin, Gleb"]
[Black "Volodin, Viktor"]
[Result "1-0"]
[ECO "D35"]
[WhiteElo "2303"]
[BlackElo "2175"]
[Annotator "NA"]
[PlyCount "79"]
[EventDate "2018.12.08"]
[EventType "swiss"]
[EventCountry "RUS"]
[SourceTitle "playchess.com"]
[Source "ChessBase"]
[SourceQuality "1"]
[TimeControl "900+10"]

1. d4 {[%emt 0:00:00]} d5 {[%emt 0:00:00]} 2. c4 {[%emt 0:00:00]} e6 {[%emt 0:00:02]} 3. Nc3 {[%emt 0:00:02]} Nf6 {[%emt 0:00:04]} 4. cxd5 {[%emt 0:00:02]} exd5 {[%emt 0:00:09]} 5. Bg5 {[%emt 0:00:11]} c6 {[%emt 0:00:07]} 6. e3 {[%emt 0:00:06]} Be7 {[%emt 0:00:12]} 7. Qc2 {[%emt 0:00:10]} Nbd7 {[%emt 0:00:07]} 8. Bd3 {[%emt 0:00:06]} O-O {[%emt 0:00:13]} 9. Nf3 {[%emt 0:00:02]} Re8 {[%emt 0:00:08]} 10. h3 {[%emt 0:00:11]} Nf8 {[%emt 0:00:03]} 11. Bf4 {[%emt 0:00:20]} Ng6 {[%emt 0:00:16]} 12. Bh2 {[%emt 0:00:03]} Bd6 {[%emt 0:00:06]} 13. Bxd6 {[%emt 0:00:04]} Qxd6 {[%emt 0:00:05]} 14. O-O-O {[%emt 0:00:04]} Bd7 {[%emt 0:01:00]} 15. Kb1 {[%emt 0:00:13]} c5 {[%emt 0:00:21]} 16. dxc5 {[%emt 0:00:22]} Qxc5 {[%emt 0:00:07]} 17. Rc1 {[%emt 0:00:04]} Rac8 {[%emt 0:00:14]} 18. Rhd1 {[%emt 0:00:08]} Ne5 {[%emt 0:00:24]} 19. Nxe5 {[%emt 0:00:14]} Rxe5 {[%emt 0:00:08]} 20. Qb3 {[%emt 0:01:44]} Qb6 {[%emt 0:00:24]} 21. Qxb6 {[%emt 0:00:57]} axb6 {[%emt 0:00:07]} 22. Be2 {[%emt 0:01:30]} Bf5+ {[%emt 0:01:40]} 23. Ka1 {[%emt 0:00:06]} h6 {[%emt 0:00:06]} 24. Bf3 {[%emt 0:00:53]} Ne4 {[%emt 0:00:43]} 25. Bxe4 {[%emt 0:00:29]} Bxe4 {[%emt 0:01:04]} 26. Nxe4 {[%emt 0:00:07]} Rxc1+ {[%emt 0:00:14]} 27. Rxc1 {[%emt 0:00:03]} dxe4 {[%emt 0:00:16]} 28. a4 {[%emt 0:01:43]} Rf5 {[%emt 0:00:42]} 29. Rc7 {[%emt 0:01:10]} Rxf2 {[%emt 0:00:14]} 30. Rxb7 {[%emt 0:00:02]} Re2 {[%emt 0:00:11]} 31. Rxb6 {[%emt 0:00:55]} Rxe3 {[%emt 0:00:06]} 32. a5 {[%emt 0:00:44]} Rd3 {[%emt 0:00:09]} 33. a6 {[%emt 0:00:22]} Rd7 {[%emt 0:01:21]} 34. Rb7 {[%emt 0:00:39]} Rd6 {[%emt 0:00:04]} 35. a7 {[%emt 0:00:14]} Ra6+ {[%emt 0:00:03]} 36. Kb1 {[%emt 0:00:02]} Kh7 {[%emt 0:00:09]} 37. Rxf7 {[%emt 0:00:22]} e3 {[%emt 0:00:13]} 38. Kc2 {[%emt 0:01:37]} Kg6 {[%emt 0:01:04]} 39. Rb7 {[%emt 0:00:10]} Kf5 {[%emt 0:00:13]} 40. Kd3 {[%emt 0:00:12]} 1-0

[Event "Moscow Rapid-ch 2018"]
[Site "Moscow"]
[Date "2018.12.09"]
[Round "9"]
[White "Utiatskaja, Irina"]
[Black "Kanevskaya, Anna"]
[Result "1-0"]
[ECO "C28"]
[WhiteElo "2246"]
[BlackElo "2105"]
[Annotator "NA"]
[PlyCount "89"]
[EventDate "2018.12.08"]
[EventType "swiss"]
[EventCountry "RUS"]
[SourceTitle "playchess.com"]
[Source "ChessBase"]
[SourceQuality "1"]
[TimeControl "900+10"]

1. e4 {[%emt 0:00:00]} e5 {[%emt 0:00:00]} 2. Bc4 {[%emt 0:00:00]} Nc6 {[%emt 0:03:05]} 3. Nc3 {[%emt 0:00:09]} Nf6 {[%emt 0:01:15]} 4. d3 {[%emt 0:00:27]} Na5 {[%emt 0:00:56]} 5. Bb3 {[%emt 0:02:07]} Nxb3 {[%emt 0:00:04]} 6. axb3 {[%emt 0:00:01]} Be7 {[%emt 0:01:25]} 7. f4 {[%emt 0:00:14]} exf4 {[%emt 0:02:09]} 8. Bxf4 {[%emt 0:00:02]} O-O {[%emt 0:00:16]} 9. Nf3 {[%emt 0:00:33]} d5 {[%emt 0:00:32]} 10. e5 {[%emt 0:02:50]} Nh5 {[%emt 0:01:36]} 11. Bd2 {[%emt 0:00:02]} Bh4+ {[%emt 0:02:05]} 12. g3 {[%emt 0:00:28]} Be7 {[%emt 0:00:46]} 13. Qe2 {[%emt 0:01:19]} d4 {[%emt 0:01:20]} 14. Ne4 {[%emt 0:00:08]} f5 {[%emt 0:00:46]} 15. Neg5 {[%emt 0:01:57]} f4 {[%emt 0:00:35]} 16. g4 {[%emt 0:02:00]} Bxg5 {[%emt 0:00:14]} 17. gxh5 {[%emt 0:00:01]} Bh4+ {[%emt 0:00:20]} 18. Kd1 {[%emt 0:00:15]} Bg4 {[%emt 0:00:05]} 19. c3 {[%emt 0:00:29]} Qd5 {[%emt 0:00:08]} 20. Rf1 {[%emt 0:00:15]} Qxb3+ {[%emt 0:00:07]} 21. Kc1 {[%emt 0:00:00]} dxc3 {[%emt 0:00:18]} 22. Bxc3 {[%emt 0:00:07]} Bxh5 {[%emt 0:00:10]} 23. Kd2 {[%emt 0:00:02]} Rad8 {[%emt 0:00:16]} 24. Ra3 {[%emt 0:00:54]} Qd5 {[%emt 0:00:11]} 25. Ra4 {[%emt 0:00:31]} c5 {[%emt 0:00:09]} 26. e6 {[%emt 0:00:43]} Bg6 {[%emt 0:00:14]} 27. Ne5 {[%emt 0:00:07]} Bg5 {[%emt 0:00:10]} 28. Kc2 {[%emt 0:01:27]} Qxe6 {[%emt 0:00:06]} 29. Qf3 {[%emt 0:00:20]} b5 {[%emt 0:00:09]} 30. Rxa7 {[%emt 0:00:08]} b4 {[%emt 0:00:03]} 31. Nxg6 {[%emt 0:00:12]} bxc3 {[%emt 0:00:14]} 32. Nxf8 {[%emt 0:00:06]} Rxf8 {[%emt 0:00:06]} 33. bxc3 {[%emt 0:00:08]} Re8 {[%emt 0:00:18]} 34. Ra8 {[%emt 0:00:17]} h6 {[%emt 0:00:08]} 35. Rxe8+ {[%emt 0:00:02]} Qxe8 {[%emt 0:00:01]} 36. Qd5+ {[%emt 0:00:02]} Kh8 {[%emt 0:00:05]} 37. Ra1 {[%emt 0:00:14]} Kh7 {[%emt 0:00:29]} 38. Ra8 {[%emt 0:00:09]} Qe2+ {[%emt 0:00:06]} 39. Kb3 {[%emt 0:00:02]} Qd1+ 40. Kc4 Kg6 {[%emt 0:00:17]} 41. Qxc5 {[%emt 0:00:33]} f3 {[%emt 0:00:17]} 42. Qf8 {[%emt 0:00:41]} Bf6 {[%emt 0:00:12]} 43. Qe8+ {[%emt 0:00:04]} Kg5 {[%emt 0:00:11]} 44. Ra5+ {[%emt 0:00:04]} Kf4 {[%emt 0:00:10]} 45. Qe4# {[%emt 0:00:04]} 1-0

[Event "Moscow Rapid-ch 2018"]
[Site "Moscow"]
[Date "2018.12.09"]
[Round "9"]
[White "Borisova, Ekaterina"]
[Black "Martynyuk, Elizaveta"]
[Result "1-0"]
[ECO "B44"]
[WhiteElo "2244"]
[BlackElo "2128"]
[Annotator "NA"]
[PlyCount "126"]
[EventDate "2018.12.08"]
[EventType "swiss"]
[EventCountry "RUS"]
[SourceTitle "playchess.com"]
[Source "ChessBase"]
[SourceQuality "1"]
[TimeControl "900+10"]

1. e4 {[%emt 0:00:00]} c5 {[%emt 0:00:00]} 2. Nf3 {[%emt 0:00:00]} e6 {[%emt 0:00:00]} 3. d4 {[%emt 0:00:00]} cxd4 {[%emt 0:00:00]} 4. Nxd4 {[%emt 0:00:00]} Nc6 {[%emt 0:00:00]} 5. c4 {[%emt 0:00:00]} Nf6 {[%emt 0:00:20]} 6. Nc3 {[%emt 0:00:32]} Be7 {[%emt 0:00:10]} 7. Be3 {[%emt 0:00:09]} a6 {[%emt 0:00:23]} 8. Be2 {[%emt 0:00:03]} d6 {[%emt 0:00:17]} 9. Rc1 {[%emt 0:00:07]} Bd7 {[%emt 0:00:05]} 10. f3 {[%emt 0:00:05]} O-O {[%emt 0:00:20]} 11. O-O {[%emt 0:00:02]} Qb8 {[%emt 0:00:13]} 12. Qd2 {[%emt 0:00:40]} Bd8 {[%emt 0:00:20]} 13. Rfd1 {[%emt 0:01:38]} Bc7 {[%emt 0:00:02]} 14. Kh1 {[%emt 0:00:30]} Kh8 {[%emt 0:00:11]} 15. a3 {[%emt 0:00:11]} b6 {[%emt 0:01:14]} 16. b4 {[%emt 0:00:10]} Ne5 {[%emt 0:00:10]} 17. Bg5 {[%emt 0:01:18]} Rg8 {[%emt 0:00:27]} 18. Nb3 {[%emt 0:00:19]} Bc6 {[%emt 0:00:32]} 19. Qe3 {[%emt 0:03:51]} Nfd7 {[%emt 0:00:32]} 20. Rc2 {[%emt 0:01:49]} Ng6 {[%emt 0:02:28]} 21. Qd2 {[%emt 0:00:21]} Nde5 {[%emt 0:00:36]} 22. Nd4 {[%emt 0:00:26]} Bd7 {[%emt 0:00:35]} 23. Be3 {[%emt 0:00:38]} Qb7 {[%emt 0:00:18]} 24. b5 {[%emt 0:02:02]} a5 {[%emt 0:01:06]} 25. f4 {[%emt 0:00:09]} Rad8 {[%emt 0:00:24]} 26. fxe5 {[%emt 0:00:09]} dxe5 {[%emt 0:00:02]} 27. Nf3 {[%emt 0:00:20]} Bxb5 {[%emt 0:00:07]} 28. Qc1 {[%emt 0:00:06]} Bc6 {[%emt 0:00:13]} 29. Ng5 {[%emt 0:00:58]} Rxd1+ {[%emt 0:00:15]} 30. Bxd1 {[%emt 0:00:04]} Bd8 {[%emt 0:00:11]} 31. Bf3 {[%emt 0:01:21]} Bxg5 {[%emt 0:00:51]} 32. Bxg5 {[%emt 0:00:01]} f6 {[%emt 0:00:16]} 33. Be3 {[%emt 0:00:11]} Nh4 {[%emt 0:00:10]} 34. Qe1 {[%emt 0:00:28]} Nxf3 {[%emt 0:01:00]} 35. gxf3 {[%emt 0:00:01]} f5 {[%emt 0:00:10]} 36. Qh4 {[%emt 0:00:09]} Qf7 {[%emt 0:00:19]} 37. Kg2 {[%emt 0:00:39]} g5 {[%emt 0:00:24]} 38. Qf2 {[%emt 0:00:22]} g4 {[%emt 0:00:11]} 39. Kf1 {[%emt 0:00:23]} f4 {[%emt 0:00:32]} 40. Bxb6 {[%emt 0:00:02]} g3 {[%emt 0:00:14]} 41. hxg3 {[%emt 0:00:03]} fxg3 {[%emt 0:00:04]} 42. Qg2 {[%emt 0:00:21]} Qb7 {[%emt 0:01:15]} 43. c5 {[%emt 0:00:14]} Qg7 {[%emt 0:00:29]} 44. Rd2 {[%emt 0:00:11]} Qg5 {[%emt 0:00:15]} 45. Ke2 {[%emt 0:00:14]} Rf8 {[%emt 0:00:31]} 46. Rd3 {[%emt 0:00:44]} h5 {[%emt 0:02:04]} 47. Bc7 {[%emt 0:00:10]} h4 {[%emt 0:00:07]} 48. Rd1 {[%emt 0:00:01]} Be8 {[%emt 0:00:51]} 49. Bd8 {[%emt 0:00:17]} Bb5+ {[%emt 0:00:08]} 50. Nxb5 {[%emt 0:00:07]} Rxd8 {[%emt 0:00:02]} 51. Nd6 {[%emt 0:00:08]} Kg7 {[%emt 0:00:34]} 52. a4 {[%emt 0:00:16]} Rb8 {[%emt 0:00:22]} 53. Nb5 {[%emt 0:00:25]} Rd8 {[%emt 0:00:02]} 54. Rxd8 {[%emt 0:00:14]} Qxd8 {[%emt 0:00:02]} 55. Qh3 {[%emt 0:00:01]} Qg5 {[%emt 0:00:37]} 56. Qg4 {[%emt 0:00:05]} Kf6 {[%emt 0:00:21]} 57. Qxg5+ {[%emt 0:00:03]} Kxg5 {[%emt 0:00:01]} 58. c6 {[%emt 0:00:09]} h3 {[%emt 0:00:02]} 59. Kf1 {[%emt 0:00:18]} Kf4 {[%emt 0:00:40]} 60. c7 {[%emt 0:00:09]} Kxf3 {[%emt 0:00:18]} 61. c8=Q {[%emt 0:00:18]} h2 {[%emt 0:00:07]} 62. Qc3+ {[%emt 0:00:09]} Kxe4 {[%emt 0:00:04]} 63. Kg2 {[%emt 0:00:07]} Kd5 1-0

[Event "Moscow Rapid-ch 2018"]
[Site "Moscow"]
[Date "2018.12.09"]
[Round "9"]
[White "Paramzina, Anastasya"]
[Black "Chasovnikova, Eugenia"]
[Result "1-0"]
[ECO "B31"]
[WhiteElo "2229"]
[BlackElo "2201"]
[Annotator "NA"]
[PlyCount "91"]
[EventDate "2018.12.08"]
[EventType "swiss"]
[EventCountry "RUS"]
[SourceTitle "playchess.com"]
[Source "ChessBase"]
[SourceQuality "1"]
[TimeControl "900+10"]

1. e4 c5 2. Nf3 Nc6 3. Bb5 g6 4. Bxc6 bxc6 5. O-O Bg7 6. c3 Nf6 7. e5 Nd5 8. Re1 O-O 9. d3 d6 10. h3 Bf5 11. Na3 Qc7 12. Nc4 Rad8 13. exd6 exd6 14. Bg5 Rde8 15. Qd2 f6 16. Bh4 Nb6 17. Bg3 Nc8 18. d4 Be4 19. dxc5 Bxf3 20. gxf3 Qd7 21. Nxd6 Nxd6 22. Kg2 f5 23. Bxd6 Be5 24. Rad1 Bxd6 25. Qxd6 Qxd6 26. cxd6 Rxe1 27. Rxe1 Rd8 28. Rd1 Kf7 29. Kg3 g5 30. f4 h6 31. fxg5 hxg5 32. f4 gxf4+ 33. Kxf4 Ke6 34. d7 c5 35. c4 a5 36. b3 Ke7 37. h4 Ke6 38. h5 Kf6 39. Rd5 Ke6 40. Rd2 Kf6 41. h6 Kg6 42. h7 Kxh7 43. Kxf5 Kg7 44. Ke6 Kf8 45. Rf2+ Kg7 46. Ke7 1-0

[Event "Moscow Rapid-ch 2018"]
[Site "Moscow"]
[Date "2018.12.09"]
[Round "9"]
[White "Vlasov, Sergey"]
[Black "Reprintsev, Alexander"]
[Result "1-0"]
[ECO "C55"]
[WhiteElo "2229"]
[BlackElo "2371"]
[Annotator "NA"]
[PlyCount "99"]
[EventDate "2018.12.08"]
[EventType "swiss"]
[EventCountry "RUS"]
[SourceTitle "playchess.com"]
[Source "ChessBase"]
[SourceQuality "1"]
[TimeControl "900+10"]

1. e4 e5 2. Bc4 Nc6 3. Nf3 Nf6 4. Qe2 h6 5. c3 d6 6. Bb3 g6 7. d3 Bg7 8. h3 O-O 9. g4 Nd7 10. Be3 Na5 11. Bc2 c5 12. Nbd2 b5 13. Nf1 Bb7 14. Ng3 d5 15. Rd1 Qc7 16. Rg1 c4 17. Nh4 cxd3 18. Bxd3 Nc4 19. exd5 Nf6 20. Bxc4 Qxc4 21. Qxc4 bxc4 22. d6 Rfd8 23. Bc5 Bf8 24. f3 Ne8 25. Kf2 Bxd6 26. Bxd6 Nxd6 27. Rge1 e4 28. fxe4 Bc6 29. Rd4 Bb5 30. Red1 Nb7 31. Rxd8+ Nxd8 32. Nf3 Rb8 33. Nd4 f6 34. Nxb5 Ne6 35. a4 Nc5 36. Rd2 Nxa4 37. Nxa7 Nxb2 38. Nc6 Rb6 39. Ne7+ Kf7 40. Nd5 Rb7 41. Ke3 Nd3 42. Kd4 Ne5 43. Ra2 Rb1 44. Ra7+ Kf8 45. Ra8+ Kf7 46. Ne2 Rd1+ 47. Kc5 Nd7+ 48. Kd6 Nb6 49. Ra7+ Kf8 50. Kc5 1-0

[Event "Moscow Rapid-ch 2018"]
[Site "Moscow"]
[Date "2018.12.09"]
[Round "9"]
[White "Stukan, Martin"]
[Black "Yeletsky, Ivan"]
[Result "1-0"]
[ECO "B32"]
[WhiteElo "2142"]
[BlackElo "2406"]
[Annotator "NA"]
[PlyCount "48"]
[EventDate "2018.12.08"]
[EventType "swiss"]
[EventCountry "RUS"]
[SourceTitle "playchess.com"]
[Source "ChessBase"]
[SourceQuality "1"]
[TimeControl "900+10"]

1. e4 c5 2. Nf3 Nc6 3. d4 cxd4 4. Nxd4 Qb6 5. Nb3 {[%emt 0:00:13]} Nf6 {[%emt 0:00:47]} 6. Nc3 {[%emt 0:00:02]} e6 {[%emt 0:00:21]} 7. Bd3 {[%emt 0:00:02]} a6 {[%emt 0:00:05]} 8. O-O {[%emt 0:00:04]} Be7 {[%emt 0:00:22]} 9. a4 {[%emt 0:00:41]} O-O {[%emt 0:00:24]} 10. Be3 {[%emt 0:00:26]} Qc7 {[%emt 0:00:02]} 11. a5 {[%emt 0:00:06]} Nb4 {[%emt 0:00:10]} 12. Bb6 {[%emt 0:02:58]} Qf4 {[%emt 0:00:07]} 13. g3 {[%emt 0:00:36]} Qb8 {[%emt 0:00:01]} 14. Bc4 {[%emt 0:02:28]} Nxe4 {[%emt 0:00:43]} 15. Nxe4 {[%emt 0:02:17]} d5 {[%emt 0:00:05]} 16. c3 {[%emt 0:01:53]} dxc4 {[%emt 0:00:23]} 17. cxb4 {[%emt 0:00:02]} cxb3 {[%emt 0:00:03]} 18. Nc5 {[%emt 0:00:06]} e5 {[%emt 0:01:17]} 19. Rc1 {[%emt 0:02:24]} Bh3 {[%emt 0:01:47]} 20. Nd7 {[%emt 0:00:55]} Qe8 {[%emt 0:01:52]} 21. Nxf8 {[%emt 0:00:04]} Bxf1 {[%emt 0:00:03]} 22. Qxf1 {[%emt 0:00:50]} Bxf8 {[%emt 0:01:37]} 23. Rc7 {[%emt 0:01:03]} Rb8 {[%emt 0:01:21]} 24. Qc4 {[%emt 0:00:15]} Bd6 {[%emt 0:00:55]} 1-0

[Event "Moscow Rapid-ch 2018"]
[Site "Moscow"]
[Date "2018.12.09"]
[Round "9"]
[White "Kornilovich, Dmitry"]
[Black "Chudinovskikh, Alexander M"]
[Result "1/2-1/2"]
[ECO "C55"]
[WhiteElo "2133"]
[BlackElo "2184"]
[Annotator "NA"]
[PlyCount "114"]
[EventDate "2018.12.08"]
[EventType "swiss"]
[EventCountry "RUS"]
[SourceTitle "playchess.com"]
[Source "ChessBase"]
[SourceQuality "1"]
[TimeControl "900+10"]

1. e4 {[%emt 0:00:00]} e5 {[%emt 0:00:00]} 2. Nf3 {[%emt 0:00:02]} Nc6 {[%emt 0:00:00]} 3. Bc4 {[%emt 0:00:02]} Nf6 {[%emt 0:00:00]} 4. d3 {[%emt 0:00:01]} Be7 {[%emt 0:00:00]} 5. c3 {[%emt 0:00:07]} O-O {[%emt 0:00:00]} 6. Bb3 {[%emt 0:00:21]} d5 {[%emt 0:00:00]} 7. Nbd2 {[%emt 0:00:51]} b6 {[%emt 0:00:32]} 8. O-O {[%emt 0:02:00]} Ba6 {[%emt 0:00:01]} 9. Re1 {[%emt 0:00:56]} Bxd3 {[%emt 0:00:13]} 10. exd5 {[%emt 0:00:05]} Nxd5 {[%emt 0:02:30]} 11. Nxe5 {[%emt 0:00:32]} Nxe5 {[%emt 0:00:19]} 12. Rxe5 {[%emt 0:00:01]} c6 {[%emt 0:02:16]} 13. Nf3 {[%emt 0:00:36]} Nf6 {[%emt 0:00:27]} 14. Rxe7 {[%emt 0:00:34]} Qxe7 {[%emt 0:00:04]} 15. Qxd3 {[%emt 0:00:01]} Rad8 {[%emt 0:00:01]} 16. Qf5 {[%emt 0:01:27]} Qe2 {[%emt 0:01:34]} 17. Qc2 {[%emt 0:01:35]} Rfe8 {[%emt 0:00:39]} 18. Qxe2 {[%emt 0:00:15]} Rxe2 {[%emt 0:00:02]} 19. Kf1 {[%emt 0:00:06]} Rde8 {[%emt 0:01:09]} 20. Bc4 {[%emt 0:02:29]} R2e4 {[%emt 0:00:03]} 21. Bd3 {[%emt 0:00:03]} R4e6 {[%emt 0:00:01]} 22. Bg5 {[%emt 0:01:22]} Ne4 {[%emt 0:00:17]} 23. Be3 {[%emt 0:00:36]} c5 {[%emt 0:00:18]} 24. Rd1 {[%emt 0:00:19]} h6 {[%emt 0:00:11]} 25. Bb5 {[%emt 0:00:17]} R8e7 {[%emt 0:00:09]} 26. Rd8+ {[%emt 0:00:03]} Kh7 {[%emt 0:00:01]} 27. Bc4 {[%emt 0:00:09]} Rd6 {[%emt 0:00:33]} 28. Rxd6 {[%emt 0:00:30]} Nxd6 {[%emt 0:00:00]} 29. Bd5 {[%emt 0:00:19]} g5 {[%emt 0:00:26]} 30. g4 {[%emt 0:00:29]} f5 {[%emt 0:00:26]} 31. h3 {[%emt 0:00:08]} Kg6 {[%emt 0:00:08]} 32. gxf5+ {[%emt 0:01:03]} Nxf5 {[%emt 0:00:25]} 33. Ke2 {[%emt 0:00:16]} h5 {[%emt 0:00:10]} 34. Nh2 {[%emt 0:00:44]} Nxe3 {[%emt 0:00:59]} 35. fxe3 {[%emt 0:00:02]} Kf5 {[%emt 0:00:08]} 36. Kf3 {[%emt 0:00:12]} Ke5 {[%emt 0:00:19]} 37. c4 {[%emt 0:00:14]} Re8 {[%emt 0:00:04]} 38. Kg3 {[%emt 0:00:31]} Kd6 {[%emt 0:00:48]} 39. Nf1 {[%emt 0:00:18]} b5 {[%emt 0:00:26]} 40. b3 {[%emt 0:00:14]} b4 {[%emt 0:00:09]} 41. Bf3 {[%emt 0:00:19]} Rf8 {[%emt 0:00:17]} 42. Nd2 {[%emt 0:00:04]} Ke5 {[%emt 0:00:16]} 43. Ne4 {[%emt 0:00:25]} Rxf3+ {[%emt 0:00:11]} 44. Kxf3 g4+ 45. hxg4 {[%emt 0:00:40]} hxg4+ {[%emt 0:00:01]} 46. Kxg4 {[%emt 0:00:02]} Kxe4 {[%emt 0:00:00]} 47. Kg5 {[%emt 0:00:01]} Kxe3 {[%emt 0:00:09]} 48. Kf5 {[%emt 0:00:02]} Kd4 {[%emt 0:00:02]} 49. Ke6 {[%emt 0:00:01]} a5 {[%emt 0:00:00]} 50. Kd6 {[%emt 0:00:02]} a4 {[%emt 0:00:01]} 51. bxa4 {[%emt 0:00:45]} Kxc4 {[%emt 0:00:01]} 52. a5 {[%emt 0:00:26]} Kb5 {[%emt 0:00:09]} 53. a6 {[%emt 0:00:01]} Kxa6 {[%emt 0:00:04]} 54. Kxc5 {[%emt 0:00:01]} Ka5 {[%emt 0:00:01]} 55. Kc4 {[%emt 0:00:03]} Ka4 {[%emt 0:00:01]} 56. Kc5 {[%emt 0:00:01]} b3 {[%emt 0:00:02]} 57. axb3+ {[%emt 0:00:01]} Kxb3 {[%emt 0:00:01]} 1/2-1/2

[Event "Moscow Rapid-ch 2018"]
[Site "Moscow"]
[Date "2018.12.09"]
[Round "9"]
[White "Afanasieva, Alexandra"]
[Black "Strutinskaia, Galina"]
[Result "1/2-1/2"]
[ECO "B30"]
[WhiteElo "1973"]
[BlackElo "2201"]
[Annotator "NA"]
[PlyCount "115"]
[EventDate "2018.12.08"]
[EventType "swiss"]
[EventCountry "RUS"]
[SourceTitle "playchess.com"]
[Source "ChessBase"]
[SourceQuality "1"]
[TimeControl "900+10"]

1. e4 {[%emt 0:00:00]} c5 {[%emt 0:00:00]} 2. Nf3 {[%emt 0:00:00]} Nc6 {[%emt 0:00:00]} 3. Bb5 {[%emt 0:00:00]} d6 {[%emt 0:00:01]} 4. O-O {[%emt 0:00:02]} Bd7 {[%emt 0:00:01]} 5. Re1 a6 6. Bf1 {[%emt 0:00:21]} Bg4 {[%emt 0:00:09]} 7. c3 {[%emt 0:00:18]} g6 {[%emt 0:00:58]} 8. h3 {[%emt 0:00:13]} Bxf3 {[%emt 0:00:01]} 9. Qxf3 {[%emt 0:00:01]} Bg7 {[%emt 0:00:01]} 10. d3 {[%emt 0:00:18]} e6 {[%emt 0:00:00]} 11. Be3 {[%emt 0:00:21]} Nge7 {[%emt 0:00:02]} 12. Nd2 {[%emt 0:00:30]} O-O {[%emt 0:00:02]} 13. Qd1 {[%emt 0:00:07]} Qd7 {[%emt 0:00:47]} 14. Nf3 {[%emt 0:00:18]} f5 {[%emt 0:00:11]} 15. exf5 {[%emt 0:03:36]} gxf5 {[%emt 0:00:22]} 16. d4 {[%emt 0:02:19]} cxd4 {[%emt 0:01:05]} 17. cxd4 {[%emt 0:00:11]} Nd5 {[%emt 0:01:21]} 18. Bc4 {[%emt 0:01:49]} Nxe3 {[%emt 0:00:17]} 19. Rxe3 {[%emt 0:00:31]} d5 {[%emt 0:00:01]} 20. Bf1 {[%emt 0:02:29]} Rae8 {[%emt 0:00:46]} 21. Qd3 {[%emt 0:02:07]} Qd6 {[%emt 0:04:06]} 22. Rae1 {[%emt 0:00:55]} Rf6 {[%emt 0:00:11]} 23. Ne5 {[%emt 0:00:31]} Rh6 {[%emt 0:00:01]} 24. f4 {[%emt 0:01:05]} Bxe5 {[%emt 0:00:18]} 25. dxe5 {[%emt 0:00:07]} Qc5 {[%emt 0:00:39]} 26. Kh1 {[%emt 0:00:05]} Rg6 {[%emt 0:00:01]} 27. Rg3 {[%emt 0:00:35]} Qf2 {[%emt 0:00:06]} 28. Rxg6+ {[%emt 0:00:01]} hxg6 {[%emt 0:00:01]} 29. Qe3 {[%emt 0:00:22]} Qh4 {[%emt 0:01:23]} 30. Rc1 {[%emt 0:00:08]} Rc8 {[%emt 0:00:11]} 31. Be2 {[%emt 0:00:08]} Kf7 {[%emt 0:00:15]} 32. Qb6 {[%emt 0:00:36]} Qe7 {[%emt 0:00:01]} 33. Bxa6 {[%emt 0:00:14]} Rc7 {[%emt 0:01:26]} 34. Bd3 {[%emt 0:00:11]} Rd7 {[%emt 0:00:05]} 35. Bb5 {[%emt 0:00:03]} Qh4 {[%emt 0:00:23]} 36. Bxc6 {[%emt 0:00:04]} bxc6 {[%emt 0:00:04]} 37. Qxc6 {[%emt 0:00:02]} Re7 {[%emt 0:00:02]} 38. Rf1 {[%emt 0:00:13]} g5 {[%emt 0:00:01]} 39. fxg5 {[%emt 0:00:09]} Qxg5 {[%emt 0:00:01]} 40. Qc3 {[%emt 0:00:11]} Rd7 {[%emt 0:00:13]} 41. Qd4 {[%emt 0:00:05]} Rc7 {[%emt 0:00:20]} 42. a4 {[%emt 0:00:21]} Rc2 {[%emt 0:00:07]} 43. Rf2 {[%emt 0:00:17]} Qc1+ {[%emt 0:00:33]} 44. Kh2 {[%emt 0:00:01]} Rc4 {[%emt 0:00:01]} 45. Qa7+ {[%emt 0:00:04]} Rc7 {[%emt 0:00:02]} 46. Qd4 {[%emt 0:00:04]} Qe1 {[%emt 0:00:21]} 47. Rf3 {[%emt 0:00:29]} Qe4 {[%emt 0:00:59]} 48. Qe3 {[%emt 0:00:16]} Rb7 {[%emt 0:00:30]} 49. Qc3 {[%emt 0:00:08]} d4 {[%emt 0:00:12]} 50. Qc5 {[%emt 0:00:10]} Rd7 {[%emt 0:00:16]} 51. Qb5 {[%emt 0:00:05]} Rb7 {[%emt 0:00:08]} 52. Qc5 {[%emt 0:00:08]} Rd7 {[%emt 0:00:18]} 53. Qb5 {[%emt 0:00:01]} Qd5 {[%emt 0:00:12]} 54. Qb8 {[%emt 0:00:14]} Rd8 {[%emt 0:00:16]} 55. Qc7+ {[%emt 0:00:01]} Rd7 {[%emt 0:00:01]} 56. Qb8 {[%emt 0:00:01]} Rd8 {[%emt 0:01:37]} 57. Qc7+ Rd7 58. Qb8 {[%emt 0:00:02]} 1/2-1/2